fUST/lending_fUST_20240516
["ID","MTS","AMOUNT","RATE_DAILY","PERIOD"]
[327163916,1715867459496,-500.0,0.00016986,2]
[327163917,1715867459505,-500.0,0.00016986,2]
[327163918,1715867459515,-500.0,0.00016986,2]
[327163919,1715867459526,-1132.33,0.00016986,2]
[327163920,1715867459535,-1228.45,0.00016986,2]
[327163921,1715867459546,-151.0,0.00016986,2]
[327163922,1715867459556,-151.0,0.00016986,2]
[327163923,1715867459566,-500.0,0.00016986,2]
[327163924,1715867459575,-151.0,0.00016986,2]
[327163925,1715867459585,-151.0,0.00016986,2]
[327163926,1715867459594,-500.0,0.00016986,2]
[327163927,1715867459604,-500.0,0.00016986,2]
[327163928,1715867459614,-2344.13,0.00016986,2]
[327163929,1715867459624,-2832.94,0.00016986,2]
[327163930,1715867459633,-541.96,0.00016986,2]
[327163931,1715867459643,-500.0,0.00016986,2]
[327163932,1715867459652,-500.0,0.00016986,2]
[327163933,1715867459662,-500.0,0.00016986,2]
[327163934,1715867459671,-700.13,0.00016986,2]
[327163935,1715867459680,-771.44,0.00016986,2]
[327163936,1715867459690,-500.0,0.00016986,2]
[327163937,1715867459699,-1316.97,0.00016986,2]
[327163938,1715867459708,-531.75,0.00016986,2]
[327163939,1715867459718,-1523.21,0.00016986,2]
[327163940,1715867459727,-1961.98,0.00016986,2]
[327163941,1715867459736,-537.16,0.00016986,2]
[327163942,1715867459747,-500.0,0.00016986,2]
[327163943,1715867459756,-4264.46,0.00016986,2]
[327163944,1715867459765,-728.078916,0.00016986,2]
[327163945,1715867459775,-728.078916,0.00016986,2]
[327163946,1715867459784,-728.078916,0.00016986,2]
[327163947,1715867459794,-500.0,0.00016986,2]
[327163948,1715867459803,-500.0,0.00016986,2]
[327163949,1715867459812,-510.47,0.00016986,2]
[327163950,1715867459822,-728.078916,0.00016986,2]
[327163951,1715867459830,-1903.14022644,0.00016986,2]
[327163952,1715867494613,154.81422293,9.999e-05,2]
[327163953,1715867517870,154.81422293,9.999e-05,2]
[327163954,1715867520927,154.81422293,9.999e-05,2]
[327163955,1715867526298,154.81422293,9.999e-05,2]
[327163956,1715867530738,150.0,0.0001588,2]
[327163957,1715867546686,154.81422293,9.999e-05,2]
[327163958,1715867933883,658.00018209,9.999e-05,2]
[327163959,1715868069372,154.81422293,9.999e-05,30]
[327163960,1715868078819,154.81422293,9.999e-05,2]
[327163961,1715868089464,154.81422293,9.999e-05,30]
[327163962,1715868429966,658.00018209,9.999e-05,2]
[327163963,1715868561608,154.81422293,9.999e-05,7]
[327163975,1715868633217,-658.00018209,0.00016204,2]
[327163976,1715868633226,-620.00069798,0.00016205,2]
[327163977,1715868633236,-150.0,0.00016245,2]
[327163978,1715868633245,-696.14156388,0.00016338,2]
[327163979,1715868633256,-267.6564848,0.00016436,2]
[327163980,1715868633265,-155.67285803,0.00016436,2]
[327163981,1715868633274,-586.02289148,0.00016436,2]
[327163982,1715868633284,-2618.13189537,0.00016437,2]
[327163983,1715868633293,-500.0,0.00016438,2]
[327163984,1715868633303,-500.0,0.00016438,2]
[327163985,1715868633312,-500.0,0.00016438,2]
[327163986,1715868633320,-500.0,0.00016438,2]
[327163987,1715868633330,-574.03,0.00016438,2]
[327163988,1715868633339,-299.6376765,0.00016438,2]
[327163989,1715868633348,-500.0,0.00016438,2]
[327163990,1715868633358,-500.0,0.00016438,2]
[327163991,1715868633367,-500.0,0.00016438,2]
[327163992,1715868633377,-500.0,0.00016438,2]
[327163993,1715868633386,-564.38,0.00016438,2]
[327163994,1715868633396,-500.0,0.00016438,2]
[327163995,1715868633405,-725.82,0.00016438,2]
[327163996,1715868633414,-500.0,0.00016438,2]
[327163997,1715868633424,-500.0,0.00016438,2]
[327163998,1715868633433,-292.55651026,0.00016438,2]
[327163999,1715868633443,-500.0,0.00016438,2]
[327164000,1715868633452,-500.0,0.00016438,2]
[327164001,1715868633462,-607.07,0.00016438,2]
[327164002,1715868633471,-515.32534349,0.00016438,2]
[327164003,1715868633481,-500.0,0.00016438,2]
[327164004,1715868633490,-500.0,0.00016438,2]
[327164005,1715868633503,-780.62,0.00016438,2]
[327164006,1715868633512,-500.0,0.00016438,2]
[327164007,1715868633522,-500.0,0.00016438,2]
[327164008,1715868633531,-500.0,0.00016438,2]
[327164009,1715868633541,-541.14,0.00016438,2]
[327164010,1715868633550,-563.59,0.00016438,2]
[327164011,1715868633559,-1402.74,0.00016438,2]
[327164012,1715868633569,-500.0,0.00016438,2]
[327164013,1715868633578,-500.0,0.00016438,2]
[327164014,1715868633587,-520.92,0.00016438,2]
[327164015,1715868633597,-500.0,0.00016438,2]
[327164016,1715868633606,-500.0,0.00016438,2]
[327164017,1715868633615,-500.0,0.00016438,2]
[327164018,1715868633625,-500.0,0.00016438,2]
[327164019,1715868633634,-500.0,0.00016438,2]
[327164020,1715868633645,-500.0,0.00016438,4]
[327164021,1715868633654,-500.0,0.00016438,2]
[327164022,1715868633664,-500.0,0.00016438,2]
[327164023,1715868633673,-500.0,0.00016438,2]
[327164024,1715868633683,-500.0,0.00016438,2]
[327164025,1715868633692,-500.0,0.00016438,2]
[327164026,1715868633702,-500.0,0.00016438,2]
[327164027,1715868633711,-500.0,0.00016438,2]
[327164028,1715868633720,-500.0,0.00016438,2]
[327164029,1715868633730,-500.0,0.00016438,2]
[327164030,1715868633739,-476.74124344,0.00016438,2]
[327164031,1715868633751,-500.0,0.00016438,2]
[327164032,1715868633761,-500.0,0.00016438,2]
[327164033,1715868633770,-577.2,0.00016438,2]
[327164034,1715868633779,-533.05,0.00016438,2]
[327164035,1715868633789,-500.0,0.00016438,2]
[327164036,1715868633798,-500.0,0.00016438,2]
[327164037,1715868633807,-500.0,0.00016438,2]
[327164038,1715868633816,-500.0,0.00016438,2]
[327164039,1715868633825,-500.0,0.00016438,2]
[327164040,1715868633835,-500.0,0.00016438,2]
[327164041,1715868633845,-500.0,0.00016438,2]
[327164042,1715868633855,-500.31,0.00016438,2]
[327164043,1715868633865,-538.75,0.00016438,2]
[327164044,1715868633875,-500.0,0.00016438,2]
[327164045,1715868633891,-220.18548516,0.00016438,2]
[327164046,1715868633901,-500.0,0.00016438,2]
[327164047,1715868633911,-500.0,0.00016438,2]
[327164048,1715868633921,-500.0,0.00016438,2]
[327164049,1715868633931,-500.0,0.00016438,2]
[327164050,1715868633941,-500.0,0.00016438,2]
[327164051,1715868633950,-613.5,0.00016438,2]
[327164052,1715868633963,-817.31,0.00016438,2]
[327164053,1715868633974,-1648.02,0.00016438,2]
[327164054,1715868633983,-929.94,0.00016438,2]
[327164055,1715868633993,-641.72,0.00016438,2]
[327164056,1715868634006,-500.0,0.00016438,2]
[327164057,1715868634016,-1440.36,0.00016438,2]
[327164058,1715868634026,-500.0,0.00016438,2]
[327164059,1715868634036,-1276.36,0.00016438,2]
[327164060,1715868634046,-500.0,0.00016438,2]
[327164061,1715868634055,-500.0,0.00016438,2]
[327164062,1715868634065,-500.0,0.00016438,2]
[327164063,1715868634075,-1399.55,0.00016438,2]
[327164064,1715868634084,-500.0,0.00016438,2]
[327164065,1715868634093,-942.46,0.00016438,2]
[327164066,1715868634102,-913.49,0.00016438,2]
[327164067,1715868634112,-500.0,0.00016438,2]
[327164068,1715868634121,-500.0,0.00016438,2]
[327164069,1715868634132,-785.46,0.00016438,2]
[327164070,1715868634142,-500.0,0.00016438,2]
[327164071,1715868634151,-742.77,0.00016438,2]
[327164072,1715868634160,-545.52,0.00016438,2]
[327164073,1715868634170,-1387.53,0.00016438,2]
[327164074,1715868634180,-500.0,0.00016438,2]
[327164075,1715868634190,-1181.37,0.00016438,2]
[327164076,1715868634202,-500.0,0.00016438,2]
[327164077,1715868634212,-448.20534619,0.00016438,2]
[327164078,1715868634221,-332.9903562,0.00016438,2]
[327164079,1715868634232,-500.0,0.00016438,2]
[327164080,1715868634241,-507.11518124,0.00016438,2]
[327164081,1715868634251,-544.42,0.00016438,2]
[327164082,1715868634261,-500.0,0.00016438,2]
[327164083,1715868634270,-500.0,0.00016438,2]
[327164084,1715868634279,-522.13,0.00016438,2]
[327164085,1715868634288,-1077.73,0.00016438,2]
[327164086,1715868634298,-500.0,0.00016438,2]
[327164087,1715868634308,-500.0,0.00016438,2]
[327164088,1715868634319,-748.28,0.00016438,2]
[327164089,1715868634328,-500.0,0.00016438,2]
[327164090,1715868634337,-612.84,0.00016438,2]
[327164091,1715868634347,-598.71,0.00016438,2]
[327164092,1715868634356,-1461.14,0.00016438,2]
[327164093,1715868634365,-668.61,0.00016438,2]
[327164094,1715868634374,-500.0,0.00016438,2]
[327164095,1715868634384,-1238.06,0.00016438,2]
[327164096,1715868634395,-319.59841999,0.00016438,2]
[327164126,1715868639213,-180.40158001,0.00016438,2]
[327164128,1715868639222,-546.43596912,0.00016438,2]
[327164130,1715868639232,-500.0,0.00016438,2]
[327164132,1715868639242,-957.96,0.00016438,2]
[327164134,1715868639251,-500.0,0.00016438,2]
[327164136,1715868639261,-1000.0,0.00016438,2]
[327164138,1715868639271,-500.0,0.00016438,2]
[327164140,1715868639280,-500.0,0.00016438,2]
[327164142,1715868639290,-591.14,0.00016438,2]
[327164144,1715868639299,-500.0,0.00016438,2]
[327164146,1715868639308,-500.0,0.00016438,2]
[327164148,1715868639318,-500.0,0.00016438,2]
[327164150,1715868639327,-500.0,0.00016438,2]
[327164152,1715868639337,-500.0,0.00016438,2]
[327164154,1715868639346,-500.0,0.00016438,2]
[327164156,1715868639355,-1318.98,0.00016438,2]
[327164158,1715868639364,-500.0,0.00016438,2]
[327164160,1715868639373,-500.0,0.00016438,2]
[327164162,1715868639382,-500.0,0.00016438,2]
[327164163,1715868639391,-500.0,0.00016438,2]
[327164166,1715868639400,-500.0,0.00016438,2]
[327164167,1715868639410,-2023.32,0.00016438,2]
[327164169,1715868639419,-2640.38,0.00016438,2]
[327164171,1715868639428,-500.0,0.00016438,2]
[327164174,1715868639437,-500.0,0.00016438,2]
[327164176,1715868639447,-500.0,0.00016438,2]
[327164177,1715868639457,-500.0,0.00016438,2]
[327164179,1715868639466,-500.0,0.00016438,2]
[327164181,1715868639476,-762.55,0.00016438,2]
[327164183,1715868639486,-607.29,0.00016438,2]
[327164185,1715868639495,-1162.57,0.00016438,2]
[327164187,1715868639505,-500.0,0.00016438,2]
[327164188,1715868639515,-500.0,0.00016438,2]
[327164190,1715868639524,-500.0,0.00016438,2]
[327164192,1715868639534,-500.0,0.00016438,2]
[327164194,1715868639543,-640.33825475,0.00016438,2]
[327164195,1715868639553,-714.57,0.00016438,2]
[327164196,1715868639562,-500.0,0.00016438,2]
[327164197,1715868639571,-500.0,0.00016438,2]
[327164198,1715868639580,-1238.18,0.00016438,2]
[327164199,1715868639590,-1123.92,0.00016438,2]
[327164200,1715868639599,-500.0,0.00016438,2]
[327164201,1715868639607,-500.0,0.00016438,2]
[327164202,1715868639617,-500.0,0.00016438,2]
[327164203,1715868639626,-500.0,0.00016438,2]
[327164204,1715868639636,-2270.47,0.00016438,2]
[327164205,1715868639645,-500.0,0.00016438,2]
[327164206,1715868639654,-3784.05,0.00016438,2]
[327164207,1715868639664,-3834.12,0.00016438,2]
[327164208,1715868639675,-500.0,0.00016438,2]
[327164209,1715868639685,-500.0,0.00016438,2]
[327164210,1715868639694,-1293.35,0.00016438,2]
[327164211,1715868639704,-500.0,0.00016438,2]
[327164212,1715868639714,-576.64,0.00016438,2]
[327164213,1715868639724,-500.0,0.00016438,2]
[327164214,1715868639734,-500.0,0.00016438,2]
[327164215,1715868639744,-569.25,0.00016438,2]
[327164216,1715868639755,-1000.0,0.00016438,2]
[327164217,1715868639764,-500.0,0.00016438,2]
[327164218,1715868639773,-500.0,0.00016438,2]
[327164219,1715868639783,-1650.87,0.00016438,2]
[327164220,1715868639794,-4427.57,0.00016438,2]
[327164221,1715868639803,-536.09,0.00016438,2]
[327164222,1715868639813,-500.0,0.00016438,2]
[327164223,1715868639823,-500.0,0.00016438,2]
[327164224,1715868639833,-500.0,0.00016438,2]
[327164225,1715868639843,-1836.96,0.00016438,2]
[327164226,1715868639852,-592.84,0.00016438,2]
[327164227,1715868639862,-1163.28,0.00016438,2]
[327164230,1715868639874,-828.6,0.00016438,2]
[327164232,1715868639889,-500.0,0.00016438,2]
[327164234,1715868639898,-1083.43,0.00016438,2]
[327164237,1715868639908,-493.84615174,0.00016438,2]
[327164239,1715868639918,-637.05,0.00016438,2]
[327164242,1715868639928,-500.0,0.00016438,2]
[327164243,1715868639937,-500.0,0.00016438,2]
[327164244,1715868639946,-634.55,0.00016438,2]
[327164245,1715868639958,-500.0,0.00016438,2]
[327164246,1715868639968,-500.0,0.00016438,2]
[327164247,1715868639978,-500.0,0.00016438,2]
[327164248,1715868639987,-506.15,0.00016438,2]
[327164249,1715868639996,-2216.54,0.00016438,2]
[327164250,1715868640006,-500.0,0.00016438,2]
[327164251,1715868640015,-500.0,0.00016438,2]
[327164252,1715868640025,-500.0,0.00016438,2]
[327164253,1715868640035,-500.0,0.00016438,2]
[327164254,1715868640044,-500.0,0.00016438,2]
[327164255,1715868640053,-582.83,0.00016438,2]
[327164256,1715868640063,-725.34,0.00016438,2]
[327164257,1715868640072,-500.0,0.00016438,2]
[327164258,1715868640081,-500.0,0.00016438,2]
[327164259,1715868640090,-581.95,0.00016438,2]
[327164260,1715868640100,-968.8,0.00016438,2]
[327164261,1715868640109,-695.1,0.00016438,2]
[327164262,1715868640118,-500.0,0.00016438,2]
[327164263,1715868640128,-2408.75,0.00016438,2]
[327164264,1715868640137,-608.31,0.00016438,2]
[327164265,1715868640147,-5346.5,0.00016438,2]
[327164266,1715868640156,-500.0,0.00016438,2]
[327164267,1715868640166,-500.0,0.00016438,2]
[327164268,1715868640176,-191.31266475,0.00016438,2]
[327164269,1715868640185,-500.0,0.00016438,2]
[327164270,1715868640195,-500.0,0.00016438,2]
[327164271,1715868640204,-702.61,0.00016438,2]
[327164272,1715868640214,-4568.54,0.00016438,2]
[327164273,1715868640223,-500.0,0.00016438,2]
[327164274,1715868640232,-500.0,0.00016438,2]
[327164275,1715868640242,-791.78,0.00016438,2]
[327164276,1715868640251,-500.0,0.00016438,2]
[327164277,1715868640262,-500.0,0.00016438,2]
[327164278,1715868640271,-500.0,0.00016438,2]
[327164279,1715868640281,-2983.66,0.00016438,2]
[327164280,1715868640290,-500.0,0.00016438,2]
[327164281,1715868640300,-500.0,0.00016438,2]
[327164282,1715868640309,-788.44,0.00016438,2]
[327164283,1715868640318,-953.82,0.00016438,2]
[327164284,1715868640328,-500.0,0.00016438,2]
[327164285,1715868640337,-500.0,0.00016438,2]
[327164286,1715868640346,-500.0,0.00016438,2]
[327164287,1715868640356,-2515.58,0.00016438,2]
[327164288,1715868640366,-500.0,0.00016438,2]
[327164289,1715868640375,-2293.45,0.00016438,2]
[327164290,1715868640385,-500.0,0.00016438,2]
[327164291,1715868640394,-1074.89,0.00016438,2]
[327164292,1715868640404,-509.43,0.00016438,2]
[327164293,1715868640413,-990.79,0.00016438,2]
[327164294,1715868640422,-500.0,0.00016438,2]
[327164295,1715868640431,-500.0,0.00016438,2]
[327164296,1715868640440,-745.07,0.00016438,2]
[327164297,1715868640450,-2889.62,0.00016438,2]
[327164298,1715868640460,-500.0,0.00016438,2]
[327164299,1715868640470,-2478.82,0.00016438,2]
[327164300,1715868640480,-500.0,0.00016438,2]
[327164301,1715868640489,-64.21537965,0.00016438,2]
[327164302,1715868640515,-435.78462035,0.00016438,2]
[327164303,1715868640525,-11.38037965,0.00016438,2]
[327164308,1715868640638,-564.57962035,0.00016438,2]
[327164309,1715868640647,-500.0,0.00016438,2]
[327164310,1715868640658,-514.64,0.00016438,2]
[327164311,1715868640668,-1152.35,0.00016438,2]
[327164312,1715868640678,-500.0,0.00016438,2]
[327164313,1715868640688,-500.0,0.00016438,2]
[327164314,1715868640698,-500.0,0.00016438,2]
[327164315,1715868640707,-4843.9,0.00016438,2]
[327164316,1715868640717,-500.0,0.00016438,2]
[327164317,1715868640727,-584.56,0.00016438,2]
[327164318,1715868640736,-9732.79,0.00016438,2]
[327164319,1715868640746,-500.0,0.00016438,2]
[327164320,1715868640757,-500.0,0.00016438,2]
[327164321,1715868640767,-500.0,0.00016438,2]
[327164322,1715868640776,-293.53299803,0.00016438,2]
[327164323,1715868640789,-1757.58700197,0.00016438,2]
[327164324,1715868640798,-500.0,0.00016438,2]
[327164325,1715868640808,-67871.82,0.00016438,2]
[327164326,1715868640818,-500.0,0.00016438,2]
[327164327,1715868640827,-995.88,0.00016438,2]
[327164328,1715868640837,-612.61,0.00016438,2]
[327164329,1715868640846,-617.83,0.00016438,2]
[327164330,1715868640856,-500.0,0.00016438,2]
[327164331,1715868640865,-500.0,0.00016438,2]
[327164332,1715868640880,-500.0,0.00016438,2]
[327164333,1715868640890,-796.88,0.00016438,2]
[327164334,1715868640899,-1332.81,0.00016438,2]
[327164335,1715868640908,-500.0,0.00016438,2]
[327164336,1715868641065,-1814.71,0.00016438,2]
[327164337,1715868641075,-500.0,0.00016438,2]
[327164338,1715868641084,-500.0,0.00016438,2]
[327164339,1715868641094,-14521.36,0.00016438,2]
[327164340,1715868641103,-500.0,0.00016438,2]
[327164341,1715868641113,-930.01,0.00016438,2]
[327164342,1715868641123,-500.49,0.00016438,2]
[327164343,1715868641133,-500.0,0.00016438,2]
[327164344,1715868641143,-2759.65,0.00016438,2]
[327164345,1715868641153,-2815.77,0.00016438,2]
[327164346,1715868641162,-564.94835898,0.00016438,2]
[327164347,1715868641171,-500.0,0.00016438,2]
[327164348,1715868641181,-500.0,0.00016438,2]
[327164349,1715868641191,-5243.03,0.00016438,2]
[327164350,1715868641202,-632.11,0.00016438,2]
[327164351,1715868641214,-500.0,0.00016438,2]
[327164352,1715868641225,-500.0,0.00016438,2]
[327164353,1715868641235,-500.0,0.00016438,2]
[327164354,1715868641244,-258.8040254,0.00016438,2]
[327164355,1715868641254,-2104.8,0.00016438,2]
[327164356,1715868641265,-8380.57,0.00016438,2]
[327164357,1715868641274,-500.0,0.00016438,2]
[327164358,1715868641283,-6574.33059365,0.00016438,2]
[327164474,1715868808765,268.98985446,0.00016438,30]
[327164502,1715869795589,16023.44002452,0.00018,7]
[327164504,1715869811574,8348.21225278,0.00018,7]
[327164540,1715869835220,8348.21225278,0.00018,7]
[327164596,1715869838785,-157.66762769,0.00016436,2]
[327164599,1715869838795,-328.22139918,0.00016436,2]
[327164601,1715869838806,-413.56185756,0.00016437,2]
[327164604,1715869838816,-406.44110723,0.00016438,2]
[327164606,1715869838826,-500.0,0.00016438,2]
[327164608,1715869838836,-500.0,0.00016438,2]
[327164610,1715869838846,-1579.35,0.00016438,2]
[327164612,1715869838857,-500.0,0.00016438,2]
[327164614,1715869838866,-500.0,0.00016438,2]
[327164616,1715869838876,-587.94,0.00016438,2]
[327164618,1715869838886,-405.46728214,0.00016438,2]
[327164620,1715869838895,-500.0,0.00016438,2]
[327164622,1715869838904,-783.25,0.00016438,2]
[327164624,1715869838914,-500.0,0.00016438,2]
[327164626,1715869838924,-378.7310477,0.00016438,2]
[327164628,1715869838934,-522.79,0.00016438,2]
[327164630,1715869838944,-891.19,0.00016438,2]
[327164632,1715869838954,-527.73365276,0.00016438,2]
[327164634,1715869838963,-500.0,0.00016438,2]
[327164636,1715869838974,-500.0,0.00016438,2]
[327164638,1715869838984,-500.0,0.00016438,2]
[327164640,1715869838994,-500.0,0.00016438,2]
[327164642,1715869839003,-500.0,0.00016438,2]
[327164644,1715869839013,-500.0,0.00016438,2]
[327164646,1715869839024,-500.0,0.00016438,2]
[327164648,1715869839034,-1248.38,0.00016438,2]
[327164650,1715869839045,-500.0,0.00016438,2]
[327164652,1715869839056,-573.77,0.00016438,2]
[327164654,1715869839066,-640.75,0.00016438,2]
[327164656,1715869839076,-1264.02,0.00016438,2]
[327164658,1715869839086,-500.0,0.00016438,2]
[327164660,1715869839096,-500.0,0.00016438,2]
[327164661,1715869839106,-500.0,0.00016438,2]
[327164663,1715869839116,-500.0,0.00016438,2]
[327164665,1715869839126,-500.0,0.00016438,2]
[327164667,1715869839136,-500.0,0.00016438,2]
[327164669,1715869839146,-500.0,0.00016438,2]
[327164671,1715869839156,-500.0,0.00016438,2]
[327164673,1715869839166,-500.0,0.00016438,2]
[327164676,1715869839176,-523.23786586,0.00016438,2]
[327164678,1715869839187,-500.0,0.00016438,2]
[327164680,1715869839199,-500.0,0.00016438,2]
[327164681,1715869839209,-348.80451072,0.00016438,2]
[327164683,1715869839227,-500.0,0.00016438,2]
[327164685,1715869839236,-500.0,0.00016438,2]
[327164687,1715869839246,-500.0,0.00016438,2]
[327164689,1715869839257,-684.79,0.00016438,2]
[327164692,1715869839267,-500.0,0.00016438,2]
[327164694,1715869839278,-500.0,0.00016438,2]
[327164695,1715869839287,-500.0,0.00016438,2]
[327164698,1715869839298,-317.23,0.00016438,2]
[327164699,1715869839308,-545.53,0.00016438,2]
[327164701,1715869839318,-500.0,0.00016438,2]
[327164703,1715869839329,-500.0,0.00016438,2]
[327164705,1715869839339,-500.0,0.00016438,2]
[327164707,1715869839349,-373.81248471,0.00016438,2]
[327164709,1715869839359,-500.0,0.00016438,2]
[327164711,1715869839369,-3159.85,0.00016438,2]
[327164714,1715869839379,-1127.03,0.00016438,2]
[327164716,1715869839390,-610.51,0.00016438,2]
[327164718,1715869839401,-500.0,0.00016438,2]
[327164719,1715869839410,-500.0,0.00016438,2]
[327164721,1715869839420,-794.07,0.00016438,2]
[327164723,1715869839431,-500.0,0.00016438,2]
[327164725,1715869839440,-500.0,0.00016438,2]
[327164727,1715869839451,-500.0,0.00016438,2]
[327164729,1715869839460,-500.0,0.00016438,2]
[327164731,1715869839470,-500.0,0.00016438,2]
[327164733,1715869839483,-695.11,0.00016438,2]
[327164735,1715869839493,-1422.43,0.00016438,2]
[327164737,1715869839503,-500.0,0.00016438,2]
[327164739,1715869839513,-500.0,0.00016438,2]
[327164741,1715869839523,-500.0,0.00016438,2]
[327164743,1715869839533,-1329.71,0.00016438,2]
[327164745,1715869839544,-557.7,0.00016438,2]
[327164747,1715869839555,-500.0,0.00016438,2]
[327164749,1715869839566,-1380.35,0.00016438,2]
[327164751,1715869839576,-500.0,0.00016438,2]
[327164753,1715869839586,-574.29341607,0.00016438,2]
[327164755,1715869839597,-500.0,0.00016438,2]
[327164757,1715869839607,-1223.18,0.00016438,2]
[327164759,1715869839618,-500.0,0.00016438,2]
[327164761,1715869839628,-903.19,0.00016438,2]
[327164763,1715869839639,-500.0,0.00016438,2]
[327164765,1715869839649,-875.42,0.00016438,2]
[327164767,1715869839660,-550.70862903,0.00016438,2]
[327164769,1715869839670,-582.97,0.00016438,2]
[327164771,1715869839681,-500.37,0.00016438,2]
[327164773,1715869839692,-711.82,0.00016438,2]
[327164775,1715869839702,-752.73,0.00016438,2]
[327164777,1715869839712,-518.54,0.00016438,2]
[327164779,1715869839726,-500.0,0.00016438,2]
[327164781,1715869839736,-717.1,0.00016438,2]
[327164783,1715869839746,-587.3,0.00016438,2]
[327164785,1715869839756,-500.0,0.00016438,2]
[327164787,1715869839766,-500.0,0.00016438,2]
[327164805,1715869839948,-1132.15,0.00016438,2]
[327164807,1715869839959,-500.0,0.00016438,2]
[327164809,1715869839969,-500.0,0.00016438,2]
[327164811,1715869839984,-500.0,0.00016438,2]
[327164813,1715869839994,-521.73,0.00016438,2]
[327164815,1715869840005,-500.0,0.00016438,2]
[327164817,1715869840016,-500.0,0.00016438,2]
[327164820,1715869840028,-190.15230657,0.00016438,2]
[327164822,1715869840040,-1032.83,0.00016438,2]
[327164824,1715869840051,-893.9,0.00016438,2]
[327164826,1715869840062,-551.96,0.00016438,2]
[327164828,1715869840073,-500.0,0.00016438,2]
[327164830,1715869840085,-500.0,0.00016438,2]
[327164832,1715869840096,-500.0,0.00016438,2]
[327164834,1715869840107,-1400.26,0.00016438,2]
[327164836,1715869840118,-500.0,0.00016438,2]
[327164838,1715869840128,-500.0,0.00016438,2]
[327164840,1715869840138,-500.0,0.00016438,2]
[327164842,1715869840149,-500.0,0.00016438,2]
[327164845,1715869840160,-500.0,0.00016438,2]
[327164847,1715869840171,-500.0,0.00016438,2]
[327164849,1715869840181,-566.51,0.00016438,2]
[327164851,1715869840193,-1000.0,0.00016438,2]
[327164853,1715869840204,-730.78,0.00016438,2]
[327164855,1715869840216,-1939.02,0.00016438,2]
[327164857,1715869840230,-500.0,0.00016438,2]
[327164859,1715869840240,-500.0,0.00016438,2]
[327164861,1715869840251,-592.09,0.00016438,2]
[327164863,1715869840261,-500.0,0.00016438,2]
[327164865,1715869840271,-500.0,0.00016438,2]
[327164867,1715869840281,-1186.59,0.00016438,2]
[327164869,1715869840291,-807.75,0.00016438,2]
[327164871,1715869840304,-581.99,0.00016438,2]
[327164873,1715869840315,-500.0,0.00016438,2]
[327164875,1715869840325,-302.92556354,0.00016438,2]
[327164877,1715869840336,-2175.87,0.00016438,2]
[327164879,1715869840346,-2530.36,0.00016438,2]
[327164881,1715869840356,-516.31652946,0.00016438,2]
[327164883,1715869840366,-500.0,0.00016438,2]
[327164885,1715869840377,-560.21,0.00016438,2]
[327164887,1715869840387,-500.0,0.00016438,2]
[327164889,1715869840398,-500.0,0.00016438,2]
[327164891,1715869840409,-500.0,0.00016438,2]